bitfinex/quotes_ETHUSD_20241129
["timestamp","ask_amount","ask_price","bid_price","bid_amount"]
[1732858304663,3.0,3588.6,3588.4,0.03226092]
[1732858304863,3.0,3588.6,3588.0,3.58716]
[1732858305104,3.0,3588.6,3588.5,0.03224251]
[1732858305263,3.0,3588.6,3588.0,3.58716]
[1732858305474,3.0,3588.6,3588.5,0.03224251]
[1732858305677,3.0,3588.6,3588.0,3.58716]
[1732858305874,3.0,3588.6,3588.5,0.03224251]
[1732858306097,3.0,3588.8,3588.1,2.78695]
[1732858306308,8.33006739,3588.6,3588.5,0.03224251]
[1732858306605,3.0,3588.2,3587.6,2.8705916]
[1732858306809,3.0141276,3588.4,3587.7,3.54887]
[1732858306990,3.0,3588.4,3587.7,3.58123656]
[1732858307504,3.0,3588.4,3587.8,2.78722]
[1732858307865,3.0,3588.3,3587.9,0.0323617]
[1732858308207,5.78683,3588.3,3587.6,2.8705616]
[1732858308502,3.0,3588.2,3587.6,2.8705616]
[1732858308709,3.0,3588.2,3587.7,0.03239853]
[1732858309200,3.0,3588.2,3587.8,0.03238012]
[1732858309382,3.0,3588.2,3587.6,2.8705616]
[1732858309581,3.0,3588.2,3587.7,0.03239853]
[1732858309800,3.0,3588.2,3587.6,2.8705616]
[1732858310015,3.0,3588.2,3587.7,0.03239853]
[1732858310506,3.0,3588.2,3587.6,2.8705616]
[1732858310705,3.0,3588.2,3587.8,0.03238012]
[1732858310910,3.0,3588.2,3587.7,0.03239853]
[1732858311065,3.0,3588.2,3587.9,0.03241695]
[1732858311268,3.0,3588.2,3587.8,0.03243537]
[1732858311469,3.0,3588.2,3588.0,0.03239854]
[1732858311670,3.0,3588.2,3587.9,0.03241695]
[1732858311885,3.0,3588.2,3588.1,0.03238013]
[1732858312367,3.0,3588.2,3587.6,2.8705616]
[1732858312608,3.0,3588.4,3587.9,0.7896]
[1732858312904,0.578668,3588.3,3588.0,0.03239563]
[1732858313103,3.0,3588.2,3588.0,0.03239563]
[1732858313308,3.0,3588.2,3587.9,0.7896]
[1732858313609,3.0,3588.2,3588.0,0.03239563]
[1732858313781,5.8011176,3588.1,3588.0,0.03239563]
[1732858313997,0.0141276,3588.1,3587.6,0.0832316]
[1732858314182,0.0141276,3588.1,3587.7,0.03243925]
[1732858314387,0.0141276,3588.1,3587.6,0.0832316]
[1732858314607,0.0141276,3588.1,3587.7,0.03243925]
[1732858314820,0.0141276,3588.1,3587.6,0.0832316]
[1732858315010,0.0141276,3588.1,3587.8,0.03242084]
[1732858315337,3.0,3588.0,3587.7,0.03243925]
[1732858315493,3.0,3588.0,3587.9,0.03240242]
[1732858316234,3.0,3588.0,3587.6,0.0832316]
[1732858316419,3.0,3588.0,3587.9,0.03240242]
[1732858316588,3.0,3588.0,3587.6,0.0832316]
[1732858316589,3.5787,3588.0,3587.6,0.0832316]
[1732858316791,3.0,3588.0,3587.7,0.03243925]
[1732858317025,3.0,3588.0,3587.6,0.0832316]
[1732858317221,3.0,3588.0,3587.8,0.03242084]
[1732858317388,3.0,3588.0,3587.7,0.03243925]
[1732858317590,0.0141276,3588.0,3587.6,0.0832316]
[1732858317925,0.0141276,3588.2,3587.7,0.03243925]
[1732858318231,3.0,3588.1,3587.6,0.0832316]
[1732858318386,3.0,3588.1,3587.8,0.03242084]
[1732858318582,3.0,3588.1,3587.6,2.8705916]
[1732858318786,3.0,3588.1,3587.7,0.03243925]
[1732858319021,3.0,3588.3,3587.7,2.78724]
[1732858319327,3.0,3588.3,3587.8,0.03244409]
[1732858319625,3.0,3588.3,3587.7,2.78724]
[1732858319810,3.0,3588.3,3587.9,0.03242568]
[1732858320121,3.0,3588.3,3587.6,0.0832316]
[1732858320122,6.365506,3588.3,3587.6,0.0832316]
[1732858320342,3.53899,3588.1,3588.0,0.03240726]
[1732858320486,0.752,3588.1,3587.6,0.0832316]
[1732858320686,7.121246,3588.3,3588.0,0.03237529]
[1732858320927,0.32471134,3588.2,3587.6,0.0832316]
[1732858321124,0.32471134,3588.2,3588.1,0.0323685]
[1732858321499,0.32471134,3588.2,3587.6,0.0832316]
[1732858321697,0.32471134,3588.2,3588.1,0.0323685]
[1732858322004,0.32471134,3588.2,3588.1,0.03237429]
[1732858322226,0.32471134,3588.2,3587.6,2.8705916]
[1732858322417,3.7557,3588.3,3588.1,0.03237429]
[1732858322603,3.54255,3588.3,3587.6,2.8705916]
[1732858322936,3.54255,3588.3,3587.7,0.03244795]
[1732858323301,0.7557,3588.3,3587.7,0.03244795]
[1732858323508,2.78692,3588.2,3587.6,0.0832316]
[1732858324400,3.0,3588.3,3587.7,0.03244795]
[1732858325532,2.78685,3588.3,3587.7,0.03244795]
[1732858328522,2.7869,3588.3,3587.6,0.0832316]
[1732858328929,2.7869,3588.3,3587.7,0.03244795]
[1732858329663,7.01868262,3588.5,3587.7,2.81971795]
[1732858329827,3.0,3588.5,3587.8,3.59901]
[1732858330029,3.0,3588.6,3588.1,0.8118]
[1732858330271,0.578652,3588.5,3588.1,0.8118]
[1732858330472,0.578652,3588.5,3588.2,0.03235587]
[1732858332031,3.0,3588.6,3588.2,0.03235587]
[1732858333159,5.7866,3588.6,3588.2,0.03235587]
[1732858335541,3.0,3588.7,3588.2,0.03235587]
[1732858335771,3.0,3589.0,3588.4,3.59413]
[1732858336154,2.78627,3589.1,3588.5,2.81774077]
[1732858336471,2.78627,3589.1,3588.5,0.03107077]
[1732858336689,2.78634,3589.0,3588.5,0.03107077]
[1732858337651,3.0,3588.9,3588.5,0.03107077]
[1732858339064,3.0,3589.1,3588.5,2.81773077]
[1732858339896,3.0,3589.1,3588.6,0.7899]
[1732858340253,3.0,3589.1,3588.7,0.03103395]
[1732858340702,3.0,3589.1,3588.6,0.7899]
[1732858340852,3.0,3589.1,3588.8,0.03101555]
[1732858341053,3.0,3589.1,3588.7,0.03103395]
[1732858341391,5.78626,3589.1,3588.8,0.03101555]
[1732858341682,0.0141276,3589.0,3588.6,0.7899]
[1732858341889,5.78626,3589.1,3588.6,0.7899]
[1732858342071,5.78626,3589.1,3588.7,0.03103395]
[1732858342402,5.78626,3589.1,3588.6,0.7899]
[1732858342695,0.0141276,3589.0,3588.7,0.03103395]
[1732858342989,0.0141276,3589.0,3588.6,0.7899]
[1732858343190,0.0141276,3589.0,3588.7,0.03103395]
[1732858343391,0.0141276,3589.0,3588.6,0.7899]
[1732858343695,0.0141276,3589.0,3588.7,0.03103395]
[1732858343855,5.78626,3589.1,3588.7,0.03103395]
[1732858344056,5.78626,3589.1,3588.6,0.7899]
[1732858344258,5.78626,3589.1,3588.8,0.03101555]
[1732858344457,5.78626,3589.1,3588.7,0.03103395]
[1732858344775,3.0,3589.1,3588.8,0.03101555]
[1732858344985,3.0,3589.1,3588.6,0.7899]
[1732858345192,3.0,3589.1,3588.7,0.03103395]
[1732858345373,3.0,3589.1,3588.6,0.7899]
[1732858345576,3.0,3589.1,3588.7,0.03103395]
[1732858345808,3.0,3589.1,3588.6,0.7899]
[1732858345959,3.0,3589.1,3588.7,0.03103395]
[1732858346159,3.0,3589.1,3588.6,0.7899]
[1732858346393,3.0,3589.1,3588.7,0.03091205]
[1732858346599,3.0,3589.1,3588.6,0.7899]
[1732858346897,3.0,3589.1,3588.7,0.03091205]
[1732858347200,5.78623,3589.1,3588.6,0.7899]
[1732858347358,3.0,3588.8,3588.6,0.7899]
[1732858347560,0.0141276,3589.0,3588.6,0.7899]
[1732858347841,0.0141276,3589.0,3588.7,0.03091205]
[1732858347989,0.0141276,3589.0,3588.6,0.7899]
[1732858348259,0.0141276,3589.0,3588.7,0.03091205]
[1732858348605,0.0141276,3589.0,3588.6,0.7899]
[1732858348903,5.78623,3589.1,3588.7,0.03091205]
[1732858349276,5.78623,3589.1,3588.6,0.7899]
[1732858349477,5.78623,3589.1,3588.8,0.03089365]
[1732858349664,5.78623,3589.1,3588.7,0.02990751]
[1732858349859,5.78623,3589.1,3588.9,0.0298707]
[1732858350063,5.78623,3589.1,3588.8,0.0298891]
[1732858350261,5.78623,3589.1,3589.0,0.02985229]
[1732858350458,5.78629,3589.0,3588.9,0.0298707]
[1732858350762,2.78681,3588.4,3587.8,0.8187]
[1732858350977,0.0141276,3588.3,3587.8,0.8187]
[1732858351385,2.78681,3588.4,3587.8,0.8187]
[1732858352668,2.78681,3588.4,3587.8,3.60592]
[1732858353109,2.8009676,3588.3,3587.8,0.8187]
[1732858353398,2.78693,3588.2,3587.8,0.8187]
[1732858353559,0.0141276,3588.4,3587.8,0.8187]
[1732858353761,3.27935086,3588.4,3587.8,0.8187]
[1732858353961,3.0,3588.3,3587.6,3.6869916]
[1732858354196,5.78687,3588.3,3587.6,3.6869916]
[1732858354597,5.8009976,3588.3,3587.6,3.6869916]
[1732858357299,3.47842326,3588.4,3587.7,2.7873]
[1732858357499,3.0,3588.4,3587.7,2.7873]
[1732858358203,1.99755262,3588.5,3587.7,2.7873]
[1732858358389,3.0,3588.3,3587.7,2.7873]
[1732858358707,2.78652,3588.7,3587.7,2.7873]
[1732858358708,1.99465262,3589.1,3588.0,0.7508]
[1732858358860,2.78665,3588.6,3588.0,0.7508]
[1732858359067,2.78665,3588.6,3588.1,0.03006439]
[1732858359708,1.23195262,3588.8,3588.3,0.8214]
[1732858359919,4.23195262,3589.1,3588.5,2.78667]
[1732858360210,3.0,3589.0,3588.6,0.02997234]
[1732858360414,3.0,3589.0,3588.3,3.60817]
[1732858360575,3.0,3589.0,3588.4,0.03000916]
[1732858360775,3.0,3589.0,3588.4,2.81674916]
[1732858360976,1.23195262,3589.1,3588.4,2.81674916]
[1732858361301,3.0,3589.0,3588.4,2.81674916]
[1732858361871,3.0,3589.0,3588.4,0.03000916]
[1732858362071,5.78629,3589.0,3588.4,0.03000916]
[1732858363710,2.78658,3588.7,3588.4,0.03000916]
[1732858365704,4.01822262,3589.1,3588.4,0.03000916]
[1732858366017,1.23195262,3589.0,3588.4,0.03000916]
[1732858366228,2.78637,3588.9,3588.4,0.03000916]
[1732858366738,2.78661,3588.6,3588.4,0.03000916]
[1732858367092,2.78661,3588.6,3587.9,2.78713]
[1732858367316,2.78661,3588.6,3588.0,2.78706]
[1732858367533,2.78661,3588.6,3588.0,2.81714281]
[1732858369696,0.0141276,3588.6,3588.0,0.03008281]
[1732858369898,2.78668,3588.5,3588.0,0.03008281]
[1732858370097,2.78668,3588.5,3587.7,2.78729]
[1732858370406,2.78668,3588.5,3587.8,2.78721]
[1732858370710,2.78668,3588.5,3588.0,0.7514]
[1732858371137,2.78668,3588.5,3588.1,0.03006439]
[1732858371336,3.28681432,3588.5,3588.1,0.03006439]
[1732858371498,2.78682,3588.4,3588.1,0.03006439]
[1732858371939,2.78691,3588.2,3588.1,0.03006439]
[1732858372237,2.78691,3588.2,3587.6,2.8705916]
[1732858372544,2.78691,3588.2,3587.7,0.03005389]
[1732858372931,2.78691,3588.2,3587.6,0.0832316]
[1732858373103,2.78691,3588.2,3587.8,0.03003547]
[1732858373303,2.78691,3588.2,3587.7,0.03014678]
[1732858373601,1.23195262,3588.1,3587.8,0.03012837]
[1732858373798,1.23195262,3588.1,3587.6,0.0832316]
[1732858373799,4.01901262,3588.1,3587.6,0.0832316]
[1732858374037,3.14401262,3588.1,3587.7,0.03014969]
[1732858374242,3.14401262,3588.1,3587.6,0.0832316]
[1732858374448,3.14401262,3588.1,3587.7,0.03014969]
[1732858374611,3.14401262,3588.1,3587.6,0.0832316]
[1732858374941,3.14401262,3588.1,3587.7,0.03014969]
[1732858375309,3.14401262,3588.1,3587.6,0.0832316]
[1732858375512,3.14401262,3588.1,3587.8,0.03017482]
[1732858375712,3.14401262,3588.1,3587.7,0.03019324]
[1732858376021,3.14401262,3588.1,3587.8,0.03017482]
[1732858376223,3.14401262,3588.1,3587.6,0.0832316]
[1732858376419,3.14401262,3588.1,3587.7,0.03019324]
[1732858376622,3.14401262,3588.1,3587.6,0.0832316]
[1732858376831,3.14401262,3588.1,3587.7,0.03019324]
[1732858377043,3.14401262,3588.1,3587.6,0.0832316]
[1732858377346,3.14401262,3588.1,3587.7,0.03019324]
[1732858377716,3.14401262,3588.1,3587.6,0.0832316]
[1732858378039,3.14401262,3588.1,3587.7,0.03019324]
[1732858378249,3.14401262,3588.1,3587.6,0.0832316]
[1732858378430,0.35695262,3588.1,3587.7,0.03019324]
[1732858378634,2.78707,3588.0,3587.6,0.0832316]
[1732858378953,2.8011976,3588.0,3587.7,0.03019324]
[1732858379117,1.23195262,3587.9,3587.7,0.03019324]
[1732858379319,2.78722,3587.8,3587.6,0.0832316]
[1732858379711,2.78722,3587.8,3587.7,0.03020485]
[1732858380238,2.78722,3587.8,3587.6,0.0832316]
[1732858380550,5.5883276,3588.0,3587.7,0.03020485]
[1732858380746,2.78715,3587.9,3587.7,0.03020485]
[1732858381049,2.78715,3587.9,3587.8,0.03018643]
[1732858381219,2.78715,3587.9,3587.6,0.0832316]
[1732858381428,2.78715,3587.9,3587.7,0.03020485]
[1732858381624,2.78715,3587.9,3587.6,0.0832316]
[1732858381825,2.78715,3587.9,3587.7,0.03020485]
[1732858382037,2.78722,3587.8,3587.6,0.0832316]
[1732858382222,3.5774,3587.7,3587.6,0.0832316]
[1732858382643,3.5915276,3587.7,3587.6,0.0832316]
[1732858384120,6.5915276,3587.7,3587.6,0.0832316]
[1732858384450,6.5774,3587.7,3587.6,0.0832316]
[1732858384650,7.07753432,3587.7,3587.6,0.0832316]
[1732858384856,11.07753432,3587.7,3587.6,0.0832316]
[1732858386220,12.30948694,3587.7,3587.6,0.0832316]
[1732858390253,12.30948694,3587.7,3587.6,0.0732316]
[1732858390558,8.30948694,3587.7,3587.6,0.0732316]
[1732858391261,7.51938694,3587.7,3587.6,0.0732316]
[1732858393063,11.51938694,3587.7,3587.6,0.0732316]
[1732858394845,11.51938694,3587.7,3587.6,0.10373361]
[1732858395477,7.0,3587.7,3587.6,0.10373361]
[1732858395761,4.0,3587.7,3587.6,0.90323361]
[1732858396262,7.5379,3587.7,3587.6,0.10373361]
[1732858400598,6.7873,3587.7,3587.6,0.10373361]
[1732858401096,6.7873,3587.7,3587.6,0.10386138]
[1732858401278,6.7873,3587.7,3587.6,0.0732316]
[1732858402958,6.7873,3587.7,3587.6,0.10386138]
[1732858403195,2.7873,3587.7,3587.6,0.10386138]
[1732858403376,2.78721,3587.9,3587.6,0.10386138]
[1732858403588,5.78699,3588.1,3587.7,0.8062]
[1732858403806,3.0,3588.1,3587.7,0.8062]
[1732858403956,3.0,3588.2,3587.8,0.03059294]
[1732858404454,3.0,3588.1,3587.9,0.03057453]
[1732858404651,5.78703,3588.1,3587.7,0.8062]
[1732858404855,5.78703,3588.1,3587.8,0.030561]
[1732858405058,5.78703,3588.1,3587.7,0.8062]
[1732858405256,5.78703,3588.1,3587.8,0.030561]
[1732858405491,5.78703,3588.1,3587.7,0.8062]
[1732858405692,5.78703,3588.1,3587.8,0.030561]
[1732858405884,5.78703,3588.1,3587.7,0.8062]
[1732858406085,5.78703,3588.1,3587.8,0.030561]
[1732858406286,5.78703,3588.1,3587.7,0.8062]
[1732858406584,5.78703,3588.1,3587.8,0.030561]
[1732858406956,5.78703,3588.1,3587.7,0.8062]
[1732858407174,5.78703,3588.1,3587.9,0.03054258]
[1732858407375,7.0,3588.0,3587.8,0.03049421]
[1732858407577,0.0141276,3587.9,3587.7,0.8062]
[1732858407774,0.0141276,3588.0,3587.7,0.8062]
[1732858408180,5.78703,3588.1,3587.7,0.8062]
[1732858408365,0.0141276,3588.0,3587.7,0.8062]
[1732858408707,5.78703,3588.1,3587.7,0.8062]
[1732858409383,0.0141276,3588.0,3587.7,0.8062]
[1732858409692,5.78703,3588.1,3587.7,0.8062]
[1732858411913,5.78683,3588.3,3587.7,0.8062]
[1732858415284,3.0,3588.5,3587.8,0.7636]
[1732858415712,5.78669,3588.5,3587.8,0.7636]
[1732858415933,5.78669,3588.5,3587.9,0.03031316]
[1732858416347,3.0,3588.5,3587.9,2.81745316]
[1732858417358,0.55,3588.4,3587.9,2.81745316]
[1732858417565,0.55,3588.6,3587.9,3.46161864]
[1732858417741,0.55,3588.7,3588.1,2.78697]
[1732858417938,0.55,3588.5,3588.0,0.7811]
[1732858418161,0.55,3588.5,3588.1,0.03020666]
[1732858419082,3.55,3588.5,3588.1,0.03020666]
[1732858421835,2.78661,3588.6,3588.1,0.03020666]
[1732858421836,3.55,3588.6,3588.1,0.03020666]
[1732858422465,3.55,3588.6,3588.1,2.81718666]
[1732858423367,3.55,3588.6,3588.1,0.03020666]
[1732858423736,3.33661,3588.6,3588.1,0.03020666]
[1732858424037,0.55,3588.4,3588.1,0.03020666]
[1732858424748,0.55,3588.7,3588.1,2.81718666]
[1732858425477,3.0,3588.6,3588.1,2.81718666]
[1732858425778,0.55,3588.5,3588.1,2.81718666]
[1732858426449,0.55,3588.5,3588.1,0.03020666]
[1732858426675,3.5641276,3588.5,3588.1,0.03020666]
[1732858426885,0.55,3588.3,3588.1,0.03020666]
[1732858427071,0.55,3588.3,3587.7,6.35393]
[1732858427273,0.55,3588.3,3587.8,2.81733997]
[1732858427771,0.55,3588.3,3587.8,2.81734997]
[1732858428174,0.55,3588.3,3587.9,2.78711]
[1732858428496,0.5641276,3588.4,3588.0,0.03012927]
[1732858428690,0.55,3588.4,3588.0,0.03012927]
[1732858428891,0.55,3588.5,3588.0,2.81712927]
[1732858429262,0.55,3588.5,3588.1,3.59527]
[1732858429577,0.55,3588.5,3588.2,0.03005178]
[1732858429892,0.55,3588.8,3588.3,2.78682]
[1732858430068,0.55,3588.8,3588.4,0.03001496]
[1732858430457,0.55,3588.8,3588.4,2.81676496]
[1732858431354,0.55,3588.8,3588.4,0.03001496]
[1732858431688,0.55,3588.8,3588.2,2.78687]
[1732858431987,0.55,3588.8,3588.3,0.02993177]
[1732858432394,0.55,3588.8,3588.2,3.425084]
[1732858432692,0.55,3588.8,3588.4,0.02991336]
[1732858432877,0.55,3588.8,3588.2,0.638214]
[1732858432878,3.55,3589.1,3588.5,3.62214495]
[1732858433076,3.55,3589.1,3588.5,0.83549495]
[1732858433077,6.33622,3589.1,3588.5,0.83549495]
[1732858433393,0.55,3588.9,3588.5,0.83549495]
[1732858435392,0.55,3588.9,3588.5,3.62215495]
[1732858436355,0.55,3589.0,3588.5,3.62215495]
[1732858436551,3.55,3589.1,3588.5,3.62215495]
[1732858436781,0.55,3589.1,3588.6,2.78658]
[1732858437168,0.55,3589.1,3588.7,0.02983201]
[1732858437359,0.8177,3589.4,3588.7,0.02983201]
[1732858437561,0.53636715,3590.7,3588.5,0.8056]
[1732858437562,3.0,3589.5,3588.5,0.8056]
[1732858437889,3.0,3589.5,3588.3,1.23195262]
[1732858437890,3.0,3589.5,3589.0,0.8163]
[1732858438055,4.81417262,3589.6,3589.1,0.02975839]
[1732858438672,0.55,3589.5,3589.1,0.02975839]
[1732858439563,3.55,3589.5,3589.1,0.02975839]
[1732858439776,0.5683663,3590.3,3589.2,0.8104]
[1732858439984,0.756,3590.6,3589.4,0.8104]
[1732858440186,0.756,3591.0,3589.8,0.8104]
[1732858440369,0.756,3591.0,3590.5,2.78512]
[1732858440570,4.0,3590.6,3590.5,3.56492]
[1732858441097,0.756,3591.0,3590.5,3.56492]
[1732858441265,0.756,3591.0,3590.5,0.7798]
[1732858441463,0.756,3591.0,3590.5,3.56491]
[1732858441869,0.55,3590.9,3590.5,3.56491]
[1732858442211,0.55,3591.1,3590.5,3.56491]
[1732858442507,1.08381626,3591.1,3590.5,3.56491]
[1732858443509,4.08381626,3591.1,3590.5,3.56491]
[1732858443669,3.55,3591.1,3590.5,3.56491]
[1732858446309,0.55,3591.1,3590.6,2.78502]
[1732858446717,0.55,3591.2,3590.6,2.78502]
[1732858447014,0.55,3591.4,3590.5,0.7798]
[1732858447191,0.55,3591.4,3590.7,2.7849]
[1732858447700,0.55,3591.2,3590.7,2.7849]
[1732858448475,0.55,3591.2,3590.8,0.02851446]
[1732858448674,0.55,3591.2,3590.7,2.7849]
[1732858448880,0.55,3591.2,3590.8,0.02851446]
[1732858449085,0.55,3591.2,3590.7,2.7849]
[1732858449316,0.55,3591.2,3590.8,0.02851446]
[1732858449522,0.55,3591.2,3590.7,2.7849]
[1732858449725,0.55,3591.2,3590.8,0.02851446]
[1732858450023,0.55,3591.2,3590.7,2.7849]
[1732858450410,0.55,3591.2,3590.8,0.02851446]
[1732858450738,3.55,3590.3,3588.7,0.7907]
[1732858451044,2.78561,3589.9,3589.0,3.57695]
[1732858451219,2.78567,3589.8,3589.0,0.7907]
[1732858451387,3.55,3589.7,3589.0,0.7907]
[1732858451594,3.5641276,3589.7,3589.1,0.3577]
[1732858452029,3.55,3589.7,3589.1,0.3577]
[1732858452196,0.55,3589.7,3589.1,0.3577]
[1732858452408,0.55,3589.8,3589.1,3.1439]
[1732858452615,0.55,3589.4,3588.7,3.61256]
[1732858453131,0.55,3589.2,3588.7,0.8261]
[1732858453430,3.55,3589.0,3588.4,0.8261]
[1732858454242,0.55,3589.1,3588.4,0.8261]
[1732858455230,0.55,3589.2,3588.5,2.78667]
[1732858455396,0.55,3589.2,3588.8,2.78643]
[1732858455935,0.55,3589.4,3588.8,2.78643]
[1732858456130,3.55,3589.4,3588.8,2.78643]
[1732858457519,0.55,3589.6,3589.1,0.8301]
[1732858457727,0.55,3589.5,3589.1,0.8301]
[1732858459340,0.55,3589.6,3588.7,3.5446]
[1732858459503,0.5641276,3589.6,3588.8,2.78644]
[1732858459701,2.7859,3589.5,3588.8,2.78644]
[1732858459926,3.55,3589.6,3588.7,0.7581]
[1732858460126,6.33585,3589.6,3588.9,2.78636]
[1732858460602,6.33585,3589.6,3588.7,1.11257]
[1732858460802,2.78593,3589.5,3588.7,3.89906]
[1732858461214,2.78593,3589.5,3588.7,1.11257]
[1732858461430,2.78593,3589.5,3588.8,2.78641]
[1732858462714,2.78599,3589.4,3588.7,0.7581]
[1732858463048,0.55,3589.3,3588.7,0.7581]
[1732858463337,0.55,3589.5,3588.9,2.78636]
[1732858463709,0.55,3589.5,3588.7,3.54459]
[1732858463904,3.33591,3589.5,3588.8,0.354459]
[1732858464554,3.33591,3589.5,3588.8,0.351659]
[1732858465349,0.55,3589.5,3588.9,2.78635]
[1732858465521,0.55,3589.5,3588.8,0.351659]
[1732858465522,0.55,3589.5,3588.8,3.138089]
[1732858465732,3.33592,3589.5,3588.8,3.138089]
[1732858467862,0.55,3589.5,3588.8,0.351659]
[1732858468099,0.55,3589.5,3588.9,2.78635]
[1732858468212,0.55,3589.5,3588.9,2.81421109]
[1732858468554,0.55,3589.5,3588.9,2.78635]
[1732858468918,0.55,3589.4,3588.7,3.54459]
[1732858469111,0.55,3589.4,3588.8,2.78644]
[1732858469712,0.55,3589.4,3588.7,1.391218]
[1732858469968,0.55,3589.3,3588.7,3.5446]
[1732858473363,0.55,3589.3,3588.7,0.7581]
[1732858473568,3.0,3589.8,3589.1,2.78619]
[1732858473872,3.0,3589.8,3589.2,2.78612]
[1732858474836,0.55,3590.0,3589.3,3.61018]
[1732858475041,3.33552,3590.0,3589.3,3.61018]
[1732858476276,3.33552,3590.0,3589.1,2.78621]
[1732858476277,0.55,3589.8,3589.1,2.78621]
[1732858476665,0.55,3589.8,3589.2,2.78612]
[1732858478843,3.55,3590.0,3589.4,2.78595]
[1732858479042,0.55,3590.0,3589.5,2.78586]
[1732858479360,0.55,3589.8,3589.4,2.78595]
[1732858479764,0.55,3589.8,3589.5,2.78589]
[1732858481104,0.55,3590.0,3589.5,2.78589]
[1732858482005,0.55,3590.0,3589.7,2.78574]
[1732858484369,0.55,3590.0,3589.8,2.78566]
[1732858486213,0.55,3590.0,3589.5,3.57169]
[1732858486506,0.55,3590.0,3589.5,2.78588]
[1732858486919,0.55,3590.0,3589.6,2.78579]
[1732858489382,0.55,3590.0,3589.7,2.78574]
[1732858490580,0.55,3590.0,3589.5,2.78585]
[1732858491182,0.55,3590.0,3589.5,2.78589]
[1732858491488,0.55,3590.0,3589.3,3.61614]
[1732858491678,0.55,3590.0,3589.5,2.78584]
[1732858492582,0.55,3590.0,3589.6,2.78576]
[1732858493329,0.55,3590.0,3589.7,2.78574]
[1732858493620,0.55,3590.0,3589.4,3.27063334]
[1732858494585,0.55,3590.0,3589.6,2.78579]
[1732858495425,0.8075,3590.4,3590.0,2.78546]
[1732858495726,0.8075,3590.4,3590.2,2.7853]
[1732858496031,0.8075,3590.8,3590.2,2.7853]
[1732858496188,0.359233,3590.7,3590.2,2.7853]
[1732858496524,0.8075,3590.8,3590.2,2.7853]
[1732858496823,0.55,3590.7,3590.2,2.7853]
[1732858498732,3.55,3590.7,3590.2,2.7853]
[1732858499897,0.55,3590.7,3590.2,2.7853]
[1732858500094,0.55,3590.7,3590.5,2.78509]
[1732858500690,0.55,3590.7,3590.5,2.78508]
[1732858500887,0.55,3591.0,3590.5,2.78508]
[1732858501694,0.55,3591.0,3590.4,0.8121]
[1732858501919,0.786,3590.5,3589.4,0.7953]
[1732858502237,0.55,3590.0,3589.5,2.78588]
[1732858502392,0.55,3590.0,3589.6,2.78576]
[1732858502591,0.55,3590.0,3589.1,1.23049344]
[1732858502806,0.55,3590.0,3589.4,2.7859]
[1732858505336,0.55,3590.0,3589.5,2.78588]
[1732858506022,0.55,3590.0,3589.6,2.81363579]
[1732858506192,0.55,3590.0,3589.6,0.58780737]
[1732858506398,0.8208,3590.5,3589.9,2.78559]
[1732858506617,0.8208,3590.5,3590.0,2.78544]
[1732858506802,0.8208,3590.5,3590.1,2.78543]
[1732858507619,0.55,3590.4,3589.9,2.78559]
[1732858510900,0.55,3590.4,3590.0,2.78551]
[1732858511100,0.55,3590.4,3590.0,2.78544]
[1732858511339,0.55,3590.4,3590.0,2.7855]
[1732858511652,0.55,3590.4,3590.3,2.78528]
[1732858511800,0.55,3590.4,3590.2,2.81319016]
[1732858512142,3.55,3590.5,3590.0,0.638637]
[1732858512312,0.55,3590.3,3589.8,2.78565]
[1732858512911,0.5641276,3590.3,3589.3,2.78598]
[1732858513202,0.76,3590.4,3589.5,2.78584]
[1732858513203,0.55,3590.0,3589.5,2.78584]
[1732858513409,0.55,3590.0,3589.3,2.78598]
[1732858513631,0.55,3590.0,3589.1,3.6025]
[1732858513822,0.55,3590.0,3589.4,2.78596]
[1732858514209,0.55,3590.0,3589.6,2.78582]
[1732858514409,0.55,3590.0,3589.4,0.02785578]
[1732858514638,0.55,3590.0,3589.4,2.78591]
[1732858515102,1.3244,3589.6,3588.9,2.78636]
[1732858515300,1.3385276,3589.6,3588.7,2.78652]
[1732858515530,1.3244,3589.6,3588.9,2.78634]
[1732858515925,1.3244,3589.6,3588.7,3.40037004]
[1732858516124,0.55,3589.4,3588.7,3.40037004]
[1732858516441,0.55,3589.4,3588.8,2.78643]
[1732858517155,0.55,3589.4,3588.7,3.40036004]
[1732858517156,3.33598,3589.4,3588.7,3.40036004]
[1732858517521,0.7744,3589.6,3588.8,2.78643]
[1732858517522,0.55,3589.5,3588.8,2.78643]
[1732858517721,0.55,3589.5,3588.9,2.78636]
[1732858517922,0.55,3589.5,3589.1,2.78619]
[1732858520817,0.55,3589.5,3589.2,2.78612]
[1732858521254,0.55,3589.8,3589.4,2.78598]
[1732858523419,0.55,3589.8,3589.4,2.78592]
[1732858524023,0.55,3589.8,3589.5,2.78589]
[1732858525637,0.55,3589.8,3589.2,3.57052]
[1732858525638,0.55,3589.8,3589.3,2.78602]
[1732858526759,0.55,3589.8,3589.2,3.57052]
[1732858526968,0.5641276,3589.8,3589.2,2.78612]
[1732858527151,0.55,3589.8,3588.8,0.8074]
[1732858527344,0.55,3589.8,3588.9,0.16998243]
[1732858527548,0.55,3589.8,3589.2,3.54583]
[1732858527764,0.55,3589.8,3589.5,2.78589]
[1732858528262,0.55,3589.8,3589.6,2.78582]
[1732858528926,0.55,3589.8,3589.4,2.81381617]
[1732858529133,0.55,3589.8,3589.7,2.78574]
[1732858529671,0.55,3590.1,3589.7,2.78574]
[1732858531640,0.55,3590.1,3589.9,2.78554]